bitfinex/quotes_SOLUSD_20241101
["timestamp","ask_amount","ask_price","bid_price","bid_amount"]
[1730420283352,22.95797,169.03,169.01,23.776884]
[1730420283954,22.95797,169.03,169.0,23.776884]
[1730420294929,22.95797,169.03,168.99,23.902374]
[1730420295742,22.95797,169.03,168.99,32.88659973]
[1730420296461,22.95797,169.03,168.99,23.902374]
[1730420296827,22.95797,169.03,168.99,23.776884]
[1730420299559,22.95797,169.03,168.99,32.76110973]
[1730420299763,22.95797,169.03,169.01,23.776884]
[1730420304673,25.9154,169.05,169.01,32.76110973]
[1730420304970,25.9154,169.05,169.01,0.12549]
[1730420305174,34.89962573,169.05,169.01,0.12549]
[1730420306953,25.9154,169.05,169.01,0.12549]
[1730420311071,34.89962573,169.05,169.01,0.12549]
[1730420311768,20.0,169.03,168.99,32.76110973]
[1730420311950,20.0,169.03,169.0,0.12549]
[1730420312666,20.0,169.04,169.0,0.12549]
[1730420312867,20.0,169.04,168.99,32.76110973]
[1730420313070,20.0,169.04,169.0,9.10971573]
[1730420313381,20.0,169.04,169.01,23.776884]
[1730420313382,5.9161,169.03,169.01,23.776884]
[1730420321578,25.9154,169.05,169.02,23.776884]
[1730420323392,25.9154,169.05,169.02,32.76110973]
[1730420323557,20.0,169.05,169.04,23.776884]
[1730420323752,25.9154,169.05,169.04,23.776884]
[1730420324086,25.9154,169.05,169.02,23.776884]
[1730420329181,25.9154,169.05,169.02,32.76110973]
[1730420342590,25.9154,169.05,169.02,23.776884]
[1730420342897,20.0,169.03,169.0,32.88659973]
[1730420343199,5.9164,169.02,169.01,8.98422573]
[1730420343389,5.9164,169.02,169.01,32.76110973]
[1730420345677,20.0,169.03,169.01,32.88659973]
[1730420345885,20.0,169.03,169.02,32.88659973]
[1730420346084,20.0,169.03,169.02,23.902374]
[1730420346281,20.0,169.03,169.01,23.902374]
[1730420347284,5.9164,169.03,169.0,23.776884]
[1730420347478,5.9164,169.03,169.0,32.76110973]
[1730420347887,20.0,169.03,169.0,32.76110973]
[1730420349403,20.0,169.03,169.01,8.98422573]
[1730420349699,25.9161,169.03,169.02,23.776884]
[1730420352101,25.9161,169.03,169.01,23.776884]
[1730420352287,25.9161,169.03,169.0,8.98422573]
[1730420352288,25.9161,169.03,169.0,23.902374]
[1730420358082,25.9161,169.03,169.0,32.88659973]
[1730420367194,25.9161,169.03,169.0,23.776884]
[1730420378327,25.9161,169.03,169.0,32.76110973]
[1730420382329,25.9161,169.03,169.01,8.98422573]
[1730420382514,25.9161,169.03,169.02,23.776884]
[1730420384710,20.0,169.03,169.02,32.76110973]
[1730420385125,20.0,169.03,169.01,32.76110973]
[1730420388035,25.9154,169.05,169.01,32.76110973]
[1730420398533,25.9154,169.05,169.02,8.98422573]
[1730420398736,25.9154,169.05,169.03,23.776884]
[1730420399124,25.9154,169.05,169.02,23.776884]
[1730420405925,34.89962573,169.05,169.01,23.902374]
[1730420407021,25.9154,169.05,169.02,23.776884]
[1730420407617,34.89962573,169.05,169.02,23.776884]
[1730420408846,34.89962573,169.05,169.01,23.902374]
[1730420410349,25.9154,169.05,169.03,23.776884]
[1730420410842,25.9154,169.05,169.01,23.902374]
[1730420411223,34.89962573,169.05,169.01,23.902374]
[1730420411526,25.9154,169.05,169.01,23.902374]
[1730420412738,25.9154,169.05,169.0,32.88659973]
[1730420412917,25.9154,169.05,169.02,23.902374]
[1730420413345,25.9154,169.05,169.02,0.12549]
[1730420417444,25.9154,169.05,169.02,9.10971573]
[1730420417629,25.9154,169.05,169.03,23.776884]
[1730420421755,25.9154,169.05,169.03,32.76110973]
[1730420421935,25.9154,169.05,169.02,32.88659973]
[1730420422254,25.9154,169.05,169.02,0.12549]
[1730420422925,20.0,169.03,169.01,23.776884]
[1730420423132,28.98422573,169.03,169.01,23.776884]
[1730420423430,20.0,169.03,169.01,23.776884]
[1730420424143,25.9163,169.03,169.01,23.776884]
[1730420430262,20.0,169.01,169.0,6.17453909]
[1730420430435,28.98422573,169.01,168.95,24.68472573]
[1730420430640,28.98422573,169.01,168.97,6.30053168]
[1730420431044,8.98422573,168.98,168.97,6.17504168]
[1730420431249,8.98422573,168.99,168.97,6.17504168]
[1730420431557,20.0,168.99,168.97,6.17504168]
[1730420432534,5.9178,168.98,168.97,6.17504168]
[1730420432735,5.9178,168.98,168.97,29.95192568]
[1730420436373,20.0,168.99,168.97,30.07741568]
[1730420436659,25.9175,168.99,168.98,23.776884]
[1730420437260,20.0,168.99,168.98,23.776884]
[1730420437750,25.9175,168.99,168.98,23.776884]
[1730420438356,34.90172573,168.99,168.97,6.17504168]
[1730420438549,8.98422573,168.98,168.93,0.25098]
[1730420438747,8.98422573,168.98,168.93,6.41368892]
[1730420439452,14.90232573,168.98,168.95,0.12549]
[1730420444168,8.98422573,168.96,168.93,6.16270892]
[1730420444668,28.98422573,168.97,168.93,6.16270892]
[1730420445363,20.0,168.97,168.94,23.776884]
[1730420445768,20.0,168.97,168.94,32.76110973]
[1730420446776,25.9178,168.98,168.94,32.76110973]
[1730420448145,25.9178,168.98,168.95,9.10971573]
[1730420448463,25.9178,168.98,168.96,23.776884]
[1730420451246,5.9173,169.0,168.97,9.10971573]
[1730420451497,5.9164,169.02,168.98,23.776884]
[1730420451647,8.98422573,169.01,168.97,23.902374]
[1730420451972,8.98422573,169.01,168.96,23.902374]
[1730420452168,14.90062573,169.02,168.96,32.88659973]
[1730420452665,20.0,169.01,168.96,32.88659973]
[1730420453377,5.9171,169.0,168.96,32.88659973]
[1730420454677,5.9171,169.0,168.98,23.776884]
[1730420460161,5.9171,169.0,168.97,23.776884]
[1730420464160,5.9171,169.0,168.96,23.902374]
[1730420467488,14.90132573,169.0,168.96,23.902374]
[1730420467860,5.9171,169.0,168.96,23.902374]
[1730420468276,5.9171,169.0,168.96,32.88659973]
[1730420472081,5.9171,169.0,168.96,23.902374]
[1730420473892,14.90132573,169.0,168.96,23.902374]
[1730420474572,5.9171,169.0,168.96,23.902374]
[1730420474872,5.9171,169.0,168.96,32.88659973]
[1730420475990,5.9171,169.0,168.99,23.776884]
[1730420476473,5.9171,169.0,168.98,23.902374]
[1730420477282,25.9168,169.02,168.98,32.88659973]
[1730420477498,25.9168,169.02,168.98,9.10971573]
[1730420477790,25.9168,169.02,168.98,0.12549]
[1730420481472,5.9168,169.02,169.0,23.776884]
[1730420482170,5.9168,169.02,168.99,23.776884]
[1730420487787,14.90052573,169.03,169.0,0.12549]
[1730420488678,5.9163,169.03,169.0,0.12549]
[1730420489502,14.90052573,169.03,169.0,0.12549]
[1730420496106,14.90052573,169.03,168.99,23.776884]
[1730420496281,14.90052573,169.03,168.98,23.776884]
[1730420496604,14.90052573,169.03,168.99,0.12549]
[1730420499802,5.9163,169.03,169.0,23.776884]
[1730420500901,31.76682573,169.05,169.0,23.776884]
[1730420501205,20.0,169.03,169.0,23.776884]
[1730420502404,25.9163,169.03,169.0,23.776884]
[1730420502906,25.9163,169.03,168.99,23.902374]
[1730420504112,8.98422573,169.02,168.98,23.776884]
[1730420504414,8.98422573,169.02,168.99,0.12549]
[1730420505186,14.90102573,169.02,168.99,0.12549]
[1730420506526,5.9168,169.02,168.99,0.12549]
[1730420513918,14.90102573,169.02,168.99,0.12549]
[1730420514218,5.9168,169.02,168.99,0.12549]
[1730420514712,14.90102573,169.02,168.99,0.12549]
[1730420514916,8.98422573,169.01,168.96,6.15509062]
[1730420515297,8.98422573,168.99,168.96,6.15509062]
[1730420516098,8.98422573,168.99,168.97,23.776884]
[1730420516503,14.90182573,168.99,168.97,23.776884]
[1730420517595,14.90182573,168.99,168.96,23.902374]
[1730420519410,8.98422573,169.0,168.96,23.902374]
[1730420522425,14.90162573,169.0,168.96,23.902374]
[1730420525720,8.98422573,168.99,168.95,23.776884]
[1730420527528,8.98422573,168.98,168.95,23.776884]
[1730420527822,8.98422573,168.97,168.95,23.776884]
[1730420528700,14.90272573,168.97,168.95,23.776884]
[1730420530526,8.98422573,168.96,168.91,6.16115829]
[1730420530732,8.98422573,168.95,168.92,23.776884]
[1730420530914,8.98422573,168.95,168.9,20.722]
[1730420531735,14.90332573,168.95,168.91,0.12549]
[1730420532027,5.9191,168.95,168.91,9.10971573]
[1730420532227,8.98422573,168.96,168.92,23.776884]
[1730420532410,5.9186,168.96,168.92,32.76110973]
[1730420533123,14.90282573,168.96,168.91,32.88659973]
[1730420533430,8.98422573,168.97,168.91,32.88659973]
[1730420533631,20.0,168.96,168.91,38.80679973]
[1730420533808,28.98422573,168.96,168.91,32.88659973]
[1730420535820,5.9189,168.95,168.91,32.88659973]
[1730420536442,5.9189,168.95,168.91,23.902374]
[1730420539815,8.98422573,168.93,168.9,23.776884]
[1730420540023,8.98422573,168.91,168.89,6.1636793]
[1730420540330,28.98422573,168.9,168.89,6.1636793]
[1730420540519,28.98422573,168.9,168.85,0.12549]
[1730420540721,8.98422573,168.88,168.85,0.12549]
[1730420540913,8.98422573,168.89,168.85,0.12549]
[1730420541107,8.98422573,168.89,168.84,20.35489]
[1730420541838,14.90542573,168.89,168.85,23.776884]
[1730420543728,8.98422573,168.87,168.85,23.776884]
[1730420543931,8.98422573,168.86,168.83,6.16224872]
[1730420544231,8.98422573,168.86,168.81,20.7326]
[1730420544434,8.98422573,168.85,168.81,20.7326]
[1730420545660,14.90642573,168.86,168.81,20.7326]
[1730420546131,14.90642573,168.86,168.82,23.776884]
[1730420548453,8.98422573,168.87,168.82,23.776884]
[1730420550624,5.922,168.86,168.82,23.776884]
[1730420551221,5.922,168.86,168.82,32.76110973]
[1730420551421,5.922,168.86,168.83,8.98422573]
[1730420551834,5.922,168.86,168.82,38.68450973]
[1730420552526,14.90592573,168.87,168.82,38.68450973]
[1730420552935,8.98422573,168.86,168.82,29.700284]
[1730420553138,8.98422573,168.85,168.82,23.776884]
[1730420553352,8.98422573,168.83,168.8,6.16320383]
[1730420553920,20.0,168.84,168.81,8.98422573]
[1730420554152,28.98422573,168.86,168.81,8.98422573]
[1730420554449,28.98422573,168.86,168.8,35.88192956]
[1730420554858,5.9224,168.85,168.81,23.776884]
[1730420556026,14.90662573,168.85,168.81,23.776884]
[1730420556443,5.9224,168.85,168.81,23.776884]
[1730420556624,28.98422573,168.86,168.81,32.76110973]
[1730420556821,25.922,168.86,168.82,8.98422573]
[1730420557053,25.922,168.86,168.83,23.776884]
[1730420561346,34.90622573,168.86,168.82,23.776884]
[1730420563659,14.90672573,168.85,168.81,23.776884]
[1730420563831,8.98422573,168.84,168.81,23.776884]
[1730420564155,8.98422573,168.83,168.81,23.776884]
[1730420565155,8.98422573,168.84,168.81,23.776884]
[1730420565358,5.9231,168.83,168.81,23.776884]
[1730420566357,8.98422573,168.83,168.81,23.776884]
[1730420567439,14.90752573,168.83,168.81,23.776884]
[1730420568758,20.0,168.82,168.78,23.776884]
[1730420569644,5.9238,168.81,168.78,23.776884]
[1730420570634,14.90802573,168.81,168.78,23.776884]
[1730420571039,20.0,168.78,168.71,8.98422573]
[1730420571270,8.98422573,168.77,168.71,14.91122573]
[1730420571462,8.98422573,168.77,168.72,6.16560594]
[1730420571765,8.98422573,168.78,168.72,15.14983167]
[1730420572159,5.9252,168.77,168.72,15.14983167]
[1730420572535,14.90942573,168.77,168.73,23.776884]
[1730420574048,26.2968,168.8,168.73,23.776884]
[1730420574049,8.98422573,168.76,168.73,23.776884]
[1730420574363,5.9259,168.75,168.73,23.776884]
[1730420574757,8.98422573,168.77,168.73,23.776884]
[1730420574943,8.98422573,168.78,168.73,32.76110973]
[1730420575143,20.0,168.77,168.73,32.76110973]
[1730420575656,28.98422573,168.77,168.73,23.776884]
[1730420575964,8.98422573,168.76,168.73,23.776884]
[1730420576158,14.90942573,168.77,168.73,23.776884]
[1730420576351,5.9252,168.77,168.73,32.76110973]
[1730420579565,21.6463,168.8,168.73,32.76110973]
[1730420579566,20.0,168.8,168.76,32.76110973]
[1730420579862,8.98422573,168.81,168.76,32.76110973]
[1730420580562,14.90762573,168.82,168.77,8.98422573]
[1730420580770,5.9234,168.82,168.79,23.776884]
[1730420583163,5.9234,168.82,168.78,23.776884]
[1730420584562,5.9234,168.82,168.78,32.76110973]
[1730420587447,5.9234,168.82,168.8,8.98422573]
[1730420587756,5.9234,168.82,168.8,23.776884]
[1730420588661,5.9224,168.85,168.8,32.76110973]
[1730420588963,20.0,168.84,168.8,32.76110973]
[1730420589273,20.0,168.84,168.8,23.776884]
[1730420589648,28.98422573,168.84,168.8,23.776884]
[1730420589966,20.0,168.82,168.79,32.76110973]
[1730420590949,20.0,168.83,168.79,32.76110973]
[1730420591143,25.9231,168.83,168.79,32.76110973]
[1730420591548,25.9231,168.83,168.79,23.776884]
[1730420594374,25.9231,168.83,168.79,32.76110973]
[1730420595185,25.9231,168.83,168.8,8.98422573]
[1730420595353,25.9231,168.83,168.81,23.776884]
[1730420601759,25.9231,168.83,168.81,32.76110973]
[1730420602076,20.0,168.85,168.83,23.776884]
[1730420603359,5.9227,168.84,168.83,23.776884]
[1730420605981,5.9227,168.84,168.83,32.76110973]
[1730420607459,20.0,168.86,168.83,32.76110973]
[1730420607658,25.922,168.86,168.84,8.98422573]
[1730420608978,20.0,168.86,168.84,8.98422573]
[1730420609183,5.9206,168.9,168.86,23.776884]
[1730420609486,5.9206,168.9,168.87,8.98422573]
[1730420609787,5.9206,168.9,168.88,23.776884]
[1730420610453,20.0,168.89,168.87,23.776884]
[1730420611363,20.0,168.9,168.87,23.776884]
[1730420611661,25.9206,168.9,168.87,23.776884]
[1730420618988,25.9206,168.9,168.86,32.76110973]
[1730420625283,25.9206,168.9,168.88,23.776884]
[1730420626683,25.9199,168.92,168.89,8.98422573]
[1730420626881,25.9199,168.92,168.9,23.776884]
[1730420629892,6.2536,168.95,168.91,8.98422573]
[1730420630200,5.9192,168.94,168.92,23.776884]
[1730420630691,5.9192,168.94,168.91,23.776884]
[1730420639987,5.9192,168.94,168.91,32.76110973]
[1730420640916,20.0,168.94,168.91,32.76110973]
[1730420641897,20.0,168.95,168.91,32.76110973]
[1730420642107,25.9189,168.95,168.91,32.76110973]
[1730420643311,34.90312573,168.95,168.91,23.776884]
[1730420650596,25.9189,168.95,168.91,23.776884]
[1730420654897,25.9189,168.95,168.91,32.76110973]
[1730420660215,25.9189,168.95,168.9,32.76110973]
[1730420666725,34.90312573,168.95,168.9,23.776884]
[1730420668033,25.9189,168.95,168.9,32.76110973]
[1730420674710,25.9189,168.95,168.9,23.776884]
[1730420675107,25.9189,168.95,168.9,32.76110973]
[1730420679036,34.90312573,168.95,168.9,32.76110973]
[1730420681423,8.98422573,168.93,168.9,23.776884]
[1730420681741,8.98422573,168.93,168.89,23.776884]
[1730420682836,8.98422573,168.93,168.89,32.76110973]
[1730420684534,14.90402573,168.93,168.89,32.76110973]
[1730420685437,8.98422573,168.92,168.89,0.12549]
[1730420685619,14.90402573,168.93,168.89,0.12549]
[1730420687521,14.90402573,168.93,168.89,9.10971573]
[1730420687836,14.90402573,168.93,168.9,23.776884]
[1730420688248,8.98422573,168.94,168.9,23.776884]
[1730420688549,25.9186,168.96,168.93,23.776884]
[1730420688931,5.9186,168.96,168.93,32.76110973]
[1730420690441,8.98422573,168.98,168.93,32.76110973]
[1730420690628,5.9182,168.97,168.93,32.76110973]
[1730420690823,5.9182,168.97,168.95,32.76110973]
[1730420691018,23.77732573,169.0,168.95,8.98422573]
[1730420691221,5.9175,168.99,168.96,23.776884]
[1730420691437,14.7907,169.03,168.96,23.776884]
[1730420691438,14.90132573,169.01,168.96,32.76110973]
[1730420691620,8.98422573,169.0,168.96,23.776884]
[1730420691927,14.90132573,169.01,168.96,32.76110973]
[1730420692129,20.0,169.0,168.96,32.76110973]
[1730420693126,5.9175,168.99,168.96,32.76110973]
[1730420693337,5.9175,168.99,168.96,23.776884]
[1730420693942,14.90172573,168.99,168.96,0.12549]
[1730420699545,5.9175,168.99,168.96,0.12549]
[1730420704746,14.90172573,168.99,168.96,0.12549]
[1730420705547,14.90172573,168.99,168.95,23.776884]
[1730420705754,8.98422573,168.97,168.94,23.776884]
[1730420705940,8.98422573,168.96,168.95,0.12549]
[1730420706454,8.98422573,168.97,168.95,0.12549]
[1730420708558,14.90242573,168.97,168.92,8.98422573]
[1730420708755,8.98422573,168.95,168.9,23.78532573]
[1730420708957,8.98422573,168.95,168.9,29.70582573]
[1730420709754,8.98422573,168.95,168.91,0.12549]
[1730420709956,5.9192,168.94,168.91,24.027864]
[1730420710665,14.90342573,168.94,168.89,21.07768595]
[1730420710962,14.90342573,168.94,168.9,0.12549]
[1730420711163,14.90342573,168.94,168.89,21.07768595]
[1730420711471,14.90342573,168.94,168.9,0.12549]
[1730420711671,14.90342573,168.94,168.9,6.04609]
[1730420711844,14.90342573,168.94,168.91,23.776884]
[1730420714186,8.98422573,168.95,168.91,23.776884]
[1730420715371,5.9192,168.94,168.91,23.776884]
[1730420717170,8.98422573,168.96,168.92,0.12549]
[1730420717470,20.0,168.96,168.93,23.776884]
[1730420718572,25.9187,168.96,168.93,23.776884]
[1730420719779,34.90292573,168.96,168.92,23.902374]
[1730420721574,34.90292573,168.96,168.91,23.776884]
[1730420722780,34.90292573,168.96,168.92,0.12549]
[1730420727881,14.90322573,168.95,168.92,0.12549]
[1730420732183,5.919,168.95,168.92,0.12549]
[1730420753383,8.98422573,168.97,168.92,9.36069573]
[1730420753599,8.98422573,168.97,168.93,23.776884]
[1730420754908,5.9185,168.96,168.93,23.776884]
[1730420756312,5.918,168.98,168.94,0.12549]
[1730420756496,5.918,168.98,168.94,9.10971573]
[1730420756801,5.918,168.98,168.95,23.776884]
[1730420758408,8.98422573,168.99,168.96,0.12549]
[1730420758600,14.90172573,168.99,168.96,0.12549]
[1730420760094,8.98422573,168.97,168.95,23.776884]
[1730420760307,8.98422573,168.97,168.94,23.776884]
[1730420760495,8.98422573,168.96,168.94,23.776884]
[1730420760708,8.98422573,168.96,168.93,23.902374]
[1730420761520,8.98422573,168.95,168.93,23.902374]
[1730420762299,14.90282573,168.96,168.93,23.902374]
[1730420763319,8.98422573,168.96,168.93,23.902374]
[1730420766118,14.90262573,168.97,168.93,23.902374]
[1730420768711,14.90262573,168.97,168.94,23.776884]
[1730420769708,8.98422573,168.98,168.94,23.776884]
[1730420769908,8.98422573,168.97,168.94,23.776884]
[1730420770818,14.90242573,168.97,168.94,23.776884]
[1730420772197,8.98422573,168.98,168.94,23.776884]
[1730420773337,14.90232573,168.98,168.94,23.776884]
[1730420773723,8.98422573,168.97,168.94,23.776884]
[1730420773919,8.98422573,168.95,168.94,23.776884]
[1730420777326,14.90312573,168.95,168.94,23.776884]
[1730420778833,5.9189,168.95,168.94,23.776884]
[1730420779923,8.98422573,168.96,168.94,23.776884]
[1730420780139,14.90282573,168.96,168.94,23.776884]
[1730420782230,8.98422573,168.95,168.94,23.776884]
[1730420785818,14.90302573,168.96,168.94,23.776884]
[1730420788723,5.9188,168.96,168.93,23.776884]
[1730420788928,8.98422573,168.98,168.93,23.776884]
[1730420789240,5.9182,168.97,168.93,32.76110973]
[1730420789731,5.9178,168.98,168.94,0.12549]
[1730420791636,8.98422573,168.98,168.94,0.12549]
[1730420791938,8.98422573,168.97,168.94,0.12549]
[1730420792126,8.98422573,168.96,168.92,29.696684]
[1730420792429,8.98422573,168.95,168.91,12.09413164]
[1730420792824,8.98422573,168.95,168.92,0.12549]
[1730420793730,8.98422573,168.95,168.92,23.902374]
[1730420794736,14.90342573,168.95,168.92,23.902374]
[1730420794942,8.98422573,168.94,168.92,23.776884]
[1730420796531,14.90342573,168.95,168.92,23.776884]
[1730420797228,5.9192,168.95,168.92,23.776884]
[1730420798942,8.98422573,168.95,168.92,23.776884]
[1730420800144,8.98422573,168.96,168.92,23.776884]
[1730420800524,8.98422573,168.96,168.92,29.696684]
[1730420800845,8.98422573,168.96,168.93,0.12549]
[1730420801038,8.98422573,168.98,168.93,6.04489]
[1730420801339,8.98422573,168.98,168.94,23.776884]
[1730420802223,8.98422573,168.97,168.94,23.776884]
[1730420802424,8.98422573,168.96,168.94,23.776884]
[1730420812351,14.90312573,168.95,168.91,6.17383164]
[1730420812546,8.98422573,168.94,168.91,6.17383164]
[1730420812745,8.98422573,168.96,168.92,0.12549]
[1730420812958,14.90282573,168.96,168.92,0.12549]
[1730420813745,14.90282573,168.96,168.92,23.902374]
[1730420813942,14.90282573,168.96,168.92,29.822274]
[1730420813943,5.9186,168.96,168.92,29.822274]
[1730420814146,14.90232573,168.98,168.94,0.12549]
[1730420816852,14.90232573,168.98,168.94,23.902374]
[1730420821655,6.3298,169.04,168.96,0.12549]
[1730420821839,8.98422573,169.01,168.96,23.902374]
[1730420822741,14.90132573,169.01,168.96,29.820874]
[1730420824156,8.98422573,169.0,168.96,29.820874]
[1730420825336,14.90142573,169.0,168.96,29.820874]
[1730420826458,8.98422573,168.99,168.96,29.820874]
[1730420827943,14.90142573,169.0,168.96,29.820874]
[1730420831644,8.98422573,169.02,168.98,0.12549]
[1730420831845,8.98422573,169.02,168.98,23.902374]
[1730420832162,8.98422573,169.02,168.98,0.12549]
[1730420833156,14.90092573,169.02,168.98,0.12549]
[1730420833343,14.90092573,169.02,168.98,23.902374]
[1730420837156,8.98422573,169.01,168.98,23.902374]
[1730420840867,8.98422573,169.01,168.99,23.776884]
[1730420841161,14.90092573,169.02,168.99,23.776884]
[1730420841747,8.98422573,169.02,169.0,0.12549]
[1730420844969,8.98422573,169.01,169.0,0.12549]
[1730420850166,8.98422573,169.02,169.0,0.12549]
[1730420852475,14.90072573,169.02,169.0,0.12549]
[1730420855179,20.0,169.03,169.01,23.776884]
[1730420855387,28.98422573,169.03,169.01,23.776884]
[1730420855888,28.98422573,169.03,169.0,24.153354]
[1730420856455,34.90042573,169.03,169.0,24.153354]
[1730420858559,20.0,169.03,169.0,0.37647]
[1730420858857,28.98422573,169.03,169.0,0.37647]
[1730420859176,8.98422573,169.02,169.0,0.37647]
[1730420860381,8.98422573,169.03,169.02,0.12549]
[1730420860603,28.98422573,169.03,169.0,0.12549]
[1730420860755,28.98422573,169.03,168.97,6.1714033]
[1730420860756,20.0,169.02,168.97,6.1714033]
[1730420860956,8.98422573,168.99,168.98,0.12549]
[1730420861183,8.98422573,169.0,168.98,0.12549]
[1730420861362,8.98422573,169.02,168.98,0.12549]
[1730420861976,8.98422573,169.02,168.98,24.153354]
[1730420862279,14.90072573,169.02,168.98,24.153354]
[1730420864062,8.98422573,169.03,168.98,44.865654]
[1730420864479,8.98422573,169.02,168.98,44.865654]
[1730420865086,8.98422573,169.01,168.98,44.865654]
[1730420867557,8.98422573,169.0,168.98,24.153354]
[1730420867760,8.98422573,168.99,168.98,24.153354]
[1730420867957,8.98422573,169.01,168.98,24.153354]
[1730420868384,8.98422573,169.01,168.98,24.027864]
[1730420870292,14.90082573,169.02,168.98,24.027864]
[1730420870587,8.98422573,169.02,168.99,0.12549]
[1730420870762,8.98422573,169.01,168.99,0.25098]
[1730420875988,8.98422573,169.02,168.99,0.25098]
[1730420876674,8.98422573,169.01,168.99,0.25098]
[1730420876970,8.98422573,169.02,168.99,0.25098]
[1730420877293,15.55862573,169.04,169.0,23.902374]
[1730420877476,28.98422573,169.03,169.01,0.25098]
[1730420878371,8.98422573,169.02,169.01,0.25098]
[1730420878588,8.98422573,169.02,169.01,0.37647]
[1730420879308,20.0,169.01,168.97,6.17610412]
[1730420879490,8.98422573,168.99,168.98,0.12549]
[1730420880276,8.98422573,169.0,168.98,0.12549]
[1730420880588,14.90132573,169.0,168.98,23.902374]
[1730420881899,5.9171,169.0,168.98,23.902374]
[1730420883294,14.90062573,169.03,168.98,23.902374]
[1730420883499,8.98422573,169.02,168.98,23.902374]
[1730420885092,14.90092573,169.02,168.98,23.902374]
[1730420885395,8.98422573,169.01,168.98,23.902374]
[1730420887579,14.90112573,169.01,168.98,23.902374]
[1730420888305,8.98422573,169.01,168.98,23.902374]
[1730420888476,14.90072573,169.02,168.98,23.902374]
[1730420888999,8.98422573,169.01,168.98,23.902374]
[1730420889495,14.90072573,169.02,168.98,23.902374]
[1730420892706,14.90032573,169.03,169.0,0.12549]
[1730420893495,8.98422573,169.02,169.0,0.12549]
[1730420893695,8.98422573,169.01,169.0,0.12549]
[1730420894104,8.98422573,169.01,168.98,23.776884]
[1730420894278,8.98422573,169.0,168.98,23.776884]
[1730420894512,8.98422573,169.01,168.98,23.776884]
[1730420894977,8.98422573,169.02,168.98,23.776884]
[1730420896613,14.90092573,169.02,168.98,23.776884]
[1730420899381,8.98422573,169.03,168.99,0.12549]
[1730420899683,8.98422573,169.02,168.99,0.12549]
[1730420900411,5.9154,169.05,169.0,23.902374]
[1730420900412,8.98422573,169.01,169.0,23.902374]
[1730420901512,8.98422573,169.01,169.0,0.12549]
[1730420904002,8.98422573,169.02,168.98,23.776884]
[1730420905004,14.90092573,169.02,168.98,23.776884]
[1730420905203,5.9167,169.02,168.99,0.12549]
[1730420905820,14.90042573,169.03,168.99,0.12549]
[1730420907213,8.98422573,169.02,168.99,0.12549]
[1730420907397,14.90062573,169.02,168.99,0.12549]
[1730420908712,8.98422573,169.02,168.99,0.12549]
[1730420908919,14.90072573,169.02,168.99,0.12549]
[1730420912097,14.90032573,169.03,168.99,0.12549]
[1730420924619,8.98422573,169.02,168.99,0.12549]
[1730420925215,8.98422573,169.01,168.99,0.12549]
[1730420925416,8.98422573,169.02,168.99,0.12549]
[1730420926029,8.98422573,169.0,168.99,0.12549]
[1730420926331,15.3128745,169.06,168.99,0.12549]
[1730420926332,8.98422573,169.02,168.99,0.12549]
[1730420927928,8.98422573,169.0,168.98,29.9546088]
[1730420928131,8.98422573,168.99,168.98,29.9546088]
[1730420928334,14.90132573,169.0,168.98,29.9546088]
[1730420929029,8.98422573,168.99,168.94,5.9191]
[1730420929230,8.98422573,168.98,168.97,6.17572185]
[1730420929433,8.98422573,168.99,168.97,6.17572185]
[1730420929613,8.98422573,168.99,168.95,0.12549]
[1730420929815,8.98422573,168.99,168.97,6.17549492]
[1730420930633,8.98422573,169.01,168.98,23.776884]
[1730420930816,14.90102573,169.01,168.98,23.776884]
[1730420931125,8.98422573,169.0,168.98,23.776884]
[1730420931721,8.98422573,169.01,168.98,23.776884]
[1730420934454,8.98422573,168.99,168.98,23.776884]
[1730420935524,8.98422573,169.0,168.98,23.776884]
[1730420936236,14.90142573,169.0,168.98,23.776884]
[1730420938857,8.98422573,168.99,168.98,23.776884]
[1730420939055,8.98422573,169.0,168.98,23.776884]
[1730420939952,14.90142573,169.0,168.98,23.776884]
[1730420944546,8.98422573,169.01,168.98,23.776884]
[1730420945943,5.9171,169.0,168.98,23.776884]